[Event "GrandPrix_30.05"]
[Site "Chess.com"]
[Date "2020.05.30"]
[Round "8"]
[White "hypert"]
[Black "Arasvard"]
[Result "1-0"]
[WhiteElo "2164"]
[BlackElo "2009"]
[TimeControl "600+2"]
[EndTime "11:58:38 PDT"]
[Termination "hypert won by resignation"]

1. e4 {[%clk 0:10:01.9]} 1... c5 {[%clk 0:09:59.2]} 2. Nf3 {[%clk 0:10:02.7]}
2... d6 {[%clk 0:10:00.1]} 3. Bb5+ {[%clk 0:10:03]} 3... Nd7 {[%clk 0:10:00.7]}
4. O-O {[%clk 0:10:03.3]} 4... a6 {[%clk 0:10:01.2]} 5. Bxd7+ {[%clk 0:10:03.8]}
5... Bxd7 {[%clk 0:10:02.1]} 6. Re1 {[%clk 0:10:05.4]} 6... Nf6 {[%clk
0:09:57.1]} 7. e5 {[%clk 0:10:06.1]} 7... dxe5 {[%clk 0:09:54.5]} 8. Nxe5 {[%clk
0:10:08]} 8... e6 {[%clk 0:09:52.6]} 9. d3 {[%clk 0:10:08.6]} 9... Be7 {[%clk
0:09:40.5]} 10. Qf3 {[%clk 0:10:05.5]} 10... b5 {[%clk 0:09:04.2]} 11. Nc6
{[%clk 0:09:13.8]} 11... Bxc6 {[%clk 0:09:02.7]} 12. Qxc6+ {[%clk 0:09:15.7]}
12... Nd7 {[%clk 0:09:03.6]} 13. a4 {[%clk 0:09:15.8]} 13... b4 {[%clk
0:08:44.7]} 14. Nd2 {[%clk 0:09:02.7]} 14... O-O {[%clk 0:08:44.3]} 15. Nc4
{[%clk 0:09:02.5]} 15... Qc8 {[%clk 0:08:09.2]} 16. Qf3 {[%clk 0:08:57.9]} 16...
Rb8 {[%clk 0:07:50.4]} 17. Bf4 {[%clk 0:08:51.8]} 17... Ra8 {[%clk 0:07:33.5]}
18. a5 {[%clk 0:08:38.9]} 18... Rd8 {[%clk 0:07:29.1]} 19. Re2 {[%clk
0:08:21.5]} 19... Ra7 {[%clk 0:07:07.7]} 20. Rae1 {[%clk 0:08:16.9]} 20... Qb7
{[%clk 0:06:58.2]} 21. Qg3 {[%clk 0:08:13.2]} 21... Nf8 {[%clk 0:06:31.1]} 22.
b3 {[%clk 0:08:06.7]} 22... Ng6 {[%clk 0:06:16]} 23. Bg5 {[%clk 0:07:37.9]}
23... Qd5 {[%clk 0:05:55.7]} 24. Bxe7 {[%clk 0:07:24.8]} 24... Rxe7 {[%clk
0:05:57.6]} 25. h4 {[%clk 0:06:57.9]} 25... Qh5 {[%clk 0:05:37.5]} 26. Re4
{[%clk 0:06:35.8]} 26... h6 {[%clk 0:05:07.8]} 27. Ne5 {[%clk 0:05:43.7]} 27...
Rd4 {[%clk 0:03:29.5]} 28. Nc6 {[%clk 0:05:10.6]} 28... Rxe4 {[%clk 0:03:29.9]}
29. Nxe7+ {[%clk 0:05:11]} 29... Nxe7 {[%clk 0:03:31.8]} 30. dxe4 {[%clk
0:05:10.2]} 30... Ng6 {[%clk 0:03:29.5]} 31. f3 {[%clk 0:04:23.1]} 31... Nxh4
{[%clk 0:03:20.3]} 32. Rd1 {[%clk 0:04:13.3]} 32... Ng6 {[%clk 0:03:14.4]} 33.
Rd6 {[%clk 0:03:24.1]} 33... c4 {[%clk 0:03:12]} 34. Rxa6 {[%clk 0:03:24.7]}
34... cxb3 {[%clk 0:03:00.3]} 35. cxb3 {[%clk 0:03:26.6]} 35... Qc5+ {[%clk
0:02:58.3]} 36. Qf2 {[%clk 0:03:27.4]} 36... Qc3 {[%clk 0:02:41.5]} 37. Ra8+
{[%clk 0:03:23]} 37... Kh7 {[%clk 0:02:42.4]} 38. a6 {[%clk 0:03:24.2]} 38...
Nf4 {[%clk 0:02:21.3]} 39. a7 {[%clk 0:02:06.5]} 39... Qa1+ {[%clk 0:01:40.9]}
40. Kh2 {[%clk 0:01:57.3]} 40... g5 {[%clk 0:01:35.4]} 41. Rf8 {[%clk
0:01:17.2]} 41... Nd3 {[%clk 0:01:29.4]} 42. a8=Q {[%clk 0:00:32.7]} 42... Qxa8
{[%clk 0:01:26.1]} 43. Rxa8 {[%clk 0:00:34.6]} 43... Nxf2 {[%clk 0:01:27.1]} 44.
Rd8 {[%clk 0:00:35.4]} 44... g4 {[%clk 0:01:20.3]} 45. Kg1 {[%clk 0:00:32.1]}
45... g3 {[%clk 0:01:20.7]} 46. Rd4 {[%clk 0:00:31.2]} 46... h5 {[%clk
0:01:19.1]} 47. Rxb4 {[%clk 0:00:30.6]} 47... Kg6 {[%clk 0:01:19.7]} 48. Rd4
{[%clk 0:00:30.4]} 48... Kf6 {[%clk 0:01:20.1]} 49. b4 {[%clk 0:00:31.2]} 49...
Ke5 {[%clk 0:01:21.5]} 50. Rd2 {[%clk 0:00:31.8]} 50... f5 {[%clk 0:01:21.9]}
51. exf5 {[%clk 0:00:31.5]} 1-0

[Event "GrandPrix_30.05"]
[Site "Chess.com"]
[Date "2020.05.30"]
[Round "8"]
[White "anesar92"]
[Black "cassoulet"]
[Result "1/2-1/2"]
[WhiteElo "2338"]
[BlackElo "2216"]
[TimeControl "600+2"]
[EndTime "11:58:39 PDT"]
[Termination "Game drawn by repetition"]

1. e4 {[%clk 0:10:01.9]} 1... c5 {[%clk 0:10:00.2]} 2. Nf3 {[%clk 0:10:02.5]}
2... Nc6 {[%clk 0:10:01.3]} 3. d4 {[%clk 0:10:02.9]} 3... cxd4 {[%clk
0:10:03.2]} 4. Nxd4 {[%clk 0:10:04.3]} 4... Nf6 {[%clk 0:10:04.6]} 5. Nc3 {[%clk
0:10:05.1]} 5... d6 {[%clk 0:10:06.2]} 6. g3 {[%clk 0:10:03.8]} 6... Bg4 {[%clk
0:10:01.3]} 7. Qd2 {[%clk 0:09:46.8]} 7... g6 {[%clk 0:09:46.3]} 8. Bg2 {[%clk
0:09:44.3]} 8... Bg7 {[%clk 0:09:46.7]} 9. Nxc6 {[%clk 0:09:45]} 9... bxc6
{[%clk 0:09:47.8]} 10. e5 {[%clk 0:09:46.2]} 10... dxe5 {[%clk 0:09:27.1]} 11.
Bxc6+ {[%clk 0:09:35.7]} 11... Kf8 {[%clk 0:09:27.5]} 12. Qxd8+ {[%clk
0:09:26.3]} 12... Rxd8 {[%clk 0:09:26.9]} 13. Be3 {[%clk 0:09:27.5]} 13... e4
{[%clk 0:08:56.9]} 14. O-O {[%clk 0:08:58.6]} 14... Bf3 {[%clk 0:08:56.1]} 15.
Bxa7 {[%clk 0:08:48.8]} 15... h5 {[%clk 0:08:56.5]} 16. Rfe1 {[%clk 0:08:39.6]}
16... h4 {[%clk 0:08:56.2]} 17. Bxe4 {[%clk 0:08:21.6]} 17... Nxe4 {[%clk
0:08:55]} 18. Nxe4 {[%clk 0:08:23.5]} 18... hxg3 {[%clk 0:08:55.7]} 19. Nxg3
{[%clk 0:08:16.4]} 19... Bxb2 {[%clk 0:08:47.3]} 20. Rab1 {[%clk 0:08:15.9]}
20... Bf6 {[%clk 0:08:48.7]} 21. Rb8 {[%clk 0:07:51.8]} 21... Kg7 {[%clk
0:08:43.2]} 22. Rxd8 {[%clk 0:07:43.4]} 22... Rxd8 {[%clk 0:08:45.1]} 23. Ne4
{[%clk 0:07:35.9]} 23... Ra8 {[%clk 0:08:41.2]} 24. Bc5 {[%clk 0:07:13.6]} 24...
Rxa2 {[%clk 0:08:19.5]} 25. Nxf6 {[%clk 0:07:12.5]} 25... exf6 {[%clk
0:08:21.4]} 26. c3 {[%clk 0:07:10]} 26... Ra5 {[%clk 0:08:17.5]} 27. Bd4 {[%clk
0:07:05.7]} 27... Rg5+ {[%clk 0:08:10.5]} 28. Kf1 {[%clk 0:07:06.3]} 28... Rh5
{[%clk 0:08:11.6]} 29. Kg1 {[%clk 0:07:07.3]} 29... Bd5 {[%clk 0:07:59.3]} 30.
Re3 {[%clk 0:07:04.5]} 30... Rh8 {[%clk 0:07:50.3]} 31. Re1 {[%clk 0:06:42.6]}
31... g5 {[%clk 0:07:49.3]} 32. Rb1 {[%clk 0:06:24.6]} 32... Rh4 {[%clk
0:07:44.1]} 33. Rb6 {[%clk 0:06:11.2]} 33... Rf4 {[%clk 0:07:43.9]} 34. Kf1
{[%clk 0:06:02.7]} 34... Kg6 {[%clk 0:07:37.5]} 35. Be3 {[%clk 0:05:54.5]} 35...
Rh4 {[%clk 0:07:32]} 36. Bd4 {[%clk 0:05:53.8]} 36... Be6 {[%clk 0:07:31.8]} 37.
Kg2 {[%clk 0:05:49.8]} 37... f5 {[%clk 0:07:32.9]} 38. Rd6 {[%clk 0:05:11]}
38... Rg4+ {[%clk 0:07:27.8]} 39. Kf1 {[%clk 0:05:10.5]} 39... f4 {[%clk
0:07:22.3]} 40. c4 {[%clk 0:05:06.2]} 40... Kf5 {[%clk 0:07:21.2]} 41. c5 {[%clk
0:05:03.2]} 41... f3 {[%clk 0:07:05]} 42. c6 {[%clk 0:04:54.6]} 42... Re4 {[%clk
0:07:03.2]} 43. h3 {[%clk 0:04:33.6]} 43... Re2 {[%clk 0:06:18.4]} 44. Kg1
{[%clk 0:04:18.6]} 44... Rc2 {[%clk 0:05:36.2]} 45. Bb6 {[%clk 0:04:13.8]} 45...
Ke5 {[%clk 0:05:28.5]} 46. Bc7 {[%clk 0:04:07.3]} 46... Ke4 {[%clk 0:05:26.1]}
47. Bb6 {[%clk 0:04:04.3]} 47... Bxh3 {[%clk 0:05:24]} 48. Kh2 {[%clk
0:03:57.3]} 48... Be6 {[%clk 0:04:43.1]} 49. c7 {[%clk 0:03:55.9]} 49... Rc1
{[%clk 0:04:28.4]} 50. Rd4+ {[%clk 0:03:39.1]} 50... Ke5 {[%clk 0:04:20.1]} 51.
Rd8 {[%clk 0:03:28.6]} 51... Rc6 {[%clk 0:04:07.3]} 52. Ba5 {[%clk 0:03:15.2]}
52... Kf4 {[%clk 0:03:50.6]} 53. Rd4+ {[%clk 0:03:01.1]} 53... Ke5 {[%clk
0:03:51.4]} 54. Rd8 {[%clk 0:02:58.5]} 54... f5 {[%clk 0:03:44.6]} 55. Kg3
{[%clk 0:02:37.9]} 55... Ke4 {[%clk 0:03:44.8]} 56. Re8 {[%clk 0:02:28.9]} 56...
f4+ {[%clk 0:03:44.7]} 57. Kh2 {[%clk 0:02:28.4]} 57... Kf5 {[%clk 0:03:37.9]}
58. Rf8+ {[%clk 0:02:25.2]} 58... Kg4 {[%clk 0:03:33.1]} 59. Rf6 {[%clk
0:02:22.2]} 59... Rc2 {[%clk 0:02:36.4]} 60. Rxe6 {[%clk 0:02:21.4]} 60... Rxf2+
{[%clk 0:02:36.3]} 61. Kg1 {[%clk 0:02:21.9]} 61... Rc2 {[%clk 0:02:00.4]} 62.
Re8 {[%clk 0:02:22.1]} 62... Rc1+ {[%clk 0:02:01.4]} 63. Kf2 {[%clk 0:02:21.5]}
63... Rc2+ {[%clk 0:01:58.9]} 64. Ke1 {[%clk 0:01:54.4]} 64... Rc1+ {[%clk
0:01:45.4]} 65. Kf2 {[%clk 0:01:33.1]} 65... Rc2+ {[%clk 0:01:45.6]} 66. Ke1
{[%clk 0:01:19]} 66... Rc1+ {[%clk 0:01:46.3]} 67. Kf2 {[%clk 0:01:18.7]}
1/2-1/2

[Event "GrandPrix_30.05"]
[Site "Chess.com"]
[Date "2020.05.30"]
[Round "8"]
[White "DaVinci81"]
[Black "VincentKeymer"]
[Result "0-1"]
[WhiteElo "2579"]
[BlackElo "2668"]
[TimeControl "600+2"]
[EndTime "11:58:42 PDT"]
[Termination "VincentKeymer won by resignation"]

1. e4 {[%clk 0:10:01.5]} 1... e6 {[%clk 0:10:01.4]} 2. d4 {[%clk 0:09:59.2]}
2... d5 {[%clk 0:10:02.8]} 3. Nd2 {[%clk 0:09:59.1]} 3... b6 {[%clk 0:10:03.2]}
4. Ngf3 {[%clk 0:09:48.4]} 4... Nf6 {[%clk 0:10:04.3]} 5. exd5 {[%clk
0:09:48.8]} 5... exd5 {[%clk 0:10:04.7]} 6. Bd3 {[%clk 0:09:42.6]} 6... Bd6
{[%clk 0:10:05.5]} 7. O-O {[%clk 0:09:42.5]} 7... O-O {[%clk 0:10:06.3]} 8. Ne5
{[%clk 0:09:42.7]} 8... c5 {[%clk 0:09:48.8]} 9. c3 {[%clk 0:09:01.2]} 9... Bb7
{[%clk 0:09:04.5]} 10. f4 {[%clk 0:07:47.5]} 10... cxd4 {[%clk 0:08:36.8]} 11.
cxd4 {[%clk 0:07:47.9]} 11... Nc6 {[%clk 0:08:38.2]} 12. Ndf3 {[%clk 0:07:30.1]}
12... Ne4 {[%clk 0:08:34.4]} 13. Be3 {[%clk 0:06:56]} 13... Ne7 {[%clk 0:08:17]}
14. Nd2 {[%clk 0:04:54.6]} 14... Nf5 {[%clk 0:07:24]} 15. Rf3 {[%clk 0:04:11.8]}
15... f6 {[%clk 0:06:24.2]} 16. Ng4 {[%clk 0:03:42.5]} 16... h5 {[%clk
0:05:54.1]} 17. Nxe4 {[%clk 0:03:28.3]} 17... hxg4 {[%clk 0:04:59.6]} 18. Nxd6
{[%clk 0:02:45.3]} 18... Nxd6 {[%clk 0:04:17.7]} 19. Rg3 {[%clk 0:02:21.3]}
19... Bc8 {[%clk 0:04:12.5]} 20. h3 {[%clk 0:02:14.1]} 20... f5 {[%clk
0:03:48.3]} 21. Rc1 {[%clk 0:02:05.8]} 21... Be6 {[%clk 0:03:32]} 22. Bf2 {[%clk
0:01:23]} 22... Ne4 {[%clk 0:02:51.4]} 23. Bxe4 {[%clk 0:01:20.6]} 23... fxe4
{[%clk 0:02:49.5]} 24. Qd2 {[%clk 0:00:46.2]} 24... Qd6 {[%clk 0:02:30.3]} 25.
Be3 {[%clk 0:00:45.8]} 25... gxh3 {[%clk 0:02:28.2]} 26. gxh3 {[%clk 0:00:45.6]}
26... Rac8 {[%clk 0:02:28.4]} 27. Rf1 {[%clk 0:00:41.5]} 27... Bf5 {[%clk
0:02:23.8]} 28. Kh2 {[%clk 0:00:41.9]} 28... g6 {[%clk 0:02:06.2]} 29. Rfg1
{[%clk 0:00:41.9]} 29... Kf7 {[%clk 0:02:06.5]} 30. Qg2 {[%clk 0:00:36.6]} 30...
Rh8 {[%clk 0:02:00.7]} 31. Rc1 {[%clk 0:00:33.9]} 31... Rxc1 {[%clk 0:01:52.1]}
32. Bxc1 {[%clk 0:00:34.8]} 32... Qb4 {[%clk 0:01:44.1]} 33. Rc3 {[%clk
0:00:33.5]} 33... Qxd4 {[%clk 0:01:30.7]} 34. Be3 {[%clk 0:00:30.5]} 34... Qd1
{[%clk 0:01:20.1]} 35. Bg1 {[%clk 0:00:25.7]} 35... d4 {[%clk 0:01:13.1]} 36.
Rc7+ {[%clk 0:00:25.7]} 36... Ke6 {[%clk 0:01:11.1]} 37. Rc6+ {[%clk 0:00:18.6]}
37... Kd7 {[%clk 0:01:04]} 38. Rc4 {[%clk 0:00:19.4]} 38... d3 {[%clk
0:00:55.6]} 39. Rd4+ {[%clk 0:00:18.6]} 39... Kc8 {[%clk 0:00:53]} 40. Rxe4
{[%clk 0:00:18.8]} 40... Rxh3+ {[%clk 0:00:51.8]} 41. Qxh3 {[%clk 0:00:19.1]}
41... Bxh3 {[%clk 0:00:53.3]} 0-1

[Event "GrandPrix_30.05"]
[Site "Chess.com"]
[Date "2020.05.30"]
[Round "8"]
[White "GMMarcinDziuba"]
[Black "Khvicha_Supatashvili"]
[Result "1/2-1/2"]
[WhiteElo "2502"]
[BlackElo "2292"]
[TimeControl "600+2"]
[EndTime "11:58:43 PDT"]
[Termination "Game drawn by repetition"]

1. c4 {[%clk 0:10:01.9]} 1... e6 {[%clk 0:09:58.5]} 2. g3 {[%clk 0:09:59.9]}
2... Nf6 {[%clk 0:09:57.9]} 3. Bg2 {[%clk 0:10:00.9]} 3... d5 {[%clk 0:09:59.1]}
4. Nf3 {[%clk 0:10:01.7]} 4... Be7 {[%clk 0:10:00.1]} 5. O-O {[%clk 0:10:02.3]}
5... O-O {[%clk 0:10:01.2]} 6. Ne5 {[%clk 0:10:03.5]} 6... Nbd7 {[%clk 0:09:47]}
7. d4 {[%clk 0:10:03.2]} 7... Nxe5 {[%clk 0:09:31.9]} 8. dxe5 {[%clk 0:10:02.7]}
8... Ng4 {[%clk 0:09:08.4]} 9. Bf4 {[%clk 0:08:51.1]} 9... g5 {[%clk 0:08:34.9]}
10. e4 {[%clk 0:08:37.9]} 10... Nxf2 {[%clk 0:07:24.2]} 11. Rxf2 {[%clk
0:08:37.6]} 11... gxf4 {[%clk 0:07:23]} 12. Rxf4 {[%clk 0:08:39.5]} 12... dxc4
{[%clk 0:06:44]} 13. Nc3 {[%clk 0:08:36.2]} 13... Qxd1+ {[%clk 0:06:39]} 14.
Rxd1 {[%clk 0:08:36]} 14... a6 {[%clk 0:06:23]} 15. a4 {[%clk 0:08:34.2]} 15...
Rb8 {[%clk 0:06:20.4]} 16. Bf3 {[%clk 0:08:18.3]} 16... b5 {[%clk 0:06:17.6]}
17. axb5 {[%clk 0:08:18.8]} 17... axb5 {[%clk 0:06:18.2]} 18. Bh5 {[%clk
0:08:20.4]} 18... b4 {[%clk 0:06:13.5]} 19. Ne2 {[%clk 0:08:15]} 19... c3 {[%clk
0:05:37.5]} 20. bxc3 {[%clk 0:08:14.1]} 20... b3 {[%clk 0:05:38.1]} 21. Nd4
{[%clk 0:08:12.7]} 21... b2 {[%clk 0:05:25.1]} 22. Rb1 {[%clk 0:08:12.1]} 22...
Ba3 {[%clk 0:05:08.3]} 23. Kg2 {[%clk 0:08:02.6]} 23... Ba6 {[%clk 0:04:58.8]}
24. Be2 {[%clk 0:07:51.9]} 24... Bxe2 {[%clk 0:04:57.7]} 25. Nxe2 {[%clk
0:07:53.8]} 25... Rfd8 {[%clk 0:04:40.6]} 26. Nd4 {[%clk 0:07:54.3]} 26... Bc5
{[%clk 0:04:34.9]} 27. Rf2 {[%clk 0:07:22.6]} 27... Rxd4 {[%clk 0:04:27.4]} 28.
cxd4 {[%clk 0:07:19.7]} 28... Bxd4 {[%clk 0:04:28.4]} 29. Rc2 {[%clk 0:07:18.2]}
29... c5 {[%clk 0:04:19.2]} 30. Kf3 {[%clk 0:07:07.6]} 30... Rb4 {[%clk
0:03:58.6]} 31. Ke2 {[%clk 0:06:16.4]} 31... c4 {[%clk 0:03:51.8]} 32. Kd1
{[%clk 0:06:16.6]} 32... c3 {[%clk 0:03:48.1]} 33. Re2 {[%clk 0:06:14.7]} 33...
Bxe5 {[%clk 0:03:44.1]} 34. Kc2 {[%clk 0:06:15.6]} 34... Ra4 {[%clk 0:03:36.4]}
35. Re3 {[%clk 0:06:08.4]} 35... Ra1 {[%clk 0:03:32.4]} 36. Ree1 {[%clk
0:06:06.8]} 36... Ra4 {[%clk 0:03:33.1]} 37. Re3 {[%clk 0:06:06.4]} 37... Kg7
{[%clk 0:03:32.7]} 38. Rf1 {[%clk 0:06:02.3]} 38... Kg6 {[%clk 0:03:27.8]} 39.
Rb1 {[%clk 0:05:47.9]} 39... h5 {[%clk 0:03:24.1]} 40. Rf1 {[%clk 0:05:47.7]}
40... f6 {[%clk 0:03:24]} 41. Rb1 {[%clk 0:05:39.6]} 41... Kg5 {[%clk
0:03:24.5]} 42. Rf1 {[%clk 0:05:37.7]} 42... Kg4 {[%clk 0:03:22.6]} 43. Ree1
{[%clk 0:04:43.1]} 43... Kh3 {[%clk 0:03:04.6]} 44. Re2 {[%clk 0:04:41.6]} 44...
Ra1 {[%clk 0:02:58.8]} 45. Rb1 {[%clk 0:04:41.5]} 45... Kg4 {[%clk 0:02:51.9]}
46. Rf2 {[%clk 0:04:35]} 46... Ra4 {[%clk 0:02:24.3]} 47. Re1 {[%clk 0:04:34]}
47... Kg5 {[%clk 0:02:14.8]} 48. Rfe2 {[%clk 0:04:24.1]} 48... Bd4 {[%clk
0:01:59.5]} 49. Rd1 {[%clk 0:04:12.1]} 49... e5 {[%clk 0:01:58.2]} 50. h3 {[%clk
0:04:07.6]} 50... Ra1 {[%clk 0:01:25]} 51. Ree1 {[%clk 0:04:02.6]} 51... Ra2
{[%clk 0:01:07.2]} 52. Kb3 {[%clk 0:03:24.7]} 52... Ra8 {[%clk 0:01:00.4]} 53.
Rf1 {[%clk 0:03:21.9]} 53... Kg6 {[%clk 0:00:58]} 54. Kc2 {[%clk 0:03:21.3]}
54... Ra3 {[%clk 0:00:56.3]} 55. Rd3 {[%clk 0:03:09.6]} 55... Ra2 {[%clk
0:00:49.2]} 56. Rdf3 {[%clk 0:03:03.2]} 56... Ra6 {[%clk 0:00:39.8]} 57. Kd3
{[%clk 0:02:44.6]} 57... Kg7 {[%clk 0:00:37.8]} 58. Kc2 {[%clk 0:02:42]} 58...
Ra1 {[%clk 0:00:31.4]} 59. Rb1 {[%clk 0:02:40]} 59... Kg6 {[%clk 0:00:30.2]} 60.
Rff1 {[%clk 0:02:39.8]} 60... Ra3 {[%clk 0:00:22.2]} 61. Rf3 {[%clk 0:02:39.9]}
61... Ra1 {[%clk 0:00:18.5]} 62. Rff1 {[%clk 0:02:40.2]} 62... Ra3 {[%clk
0:00:16.6]} 63. Rf3 {[%clk 0:02:32.4]} 63... Ra1 {[%clk 0:00:17]} 1/2-1/2

[Event "GrandPrix_30.05"]
[Site "Chess.com"]
[Date "2020.05.30"]
[Round "8"]
[White "Baron_von_Koenig"]
[Black "hubertsmazak"]
[Result "1/2-1/2"]
[WhiteElo "2156"]
[BlackElo "2244"]
[TimeControl "600+2"]
[EndTime "11:59:00 PDT"]
[Termination "Game drawn by agreement"]

1. Nc3 {[%clk 0:10:01.9]} 1... c5 {[%clk 0:09:58.7]} 2. Nf3 {[%clk 0:10:02.4]}
2... Nc6 {[%clk 0:09:56.1]} 3. d4 {[%clk 0:10:03.5]} 3... cxd4 {[%clk
0:09:56.8]} 4. Nxd4 {[%clk 0:10:04.6]} 4... e6 {[%clk 0:09:58]} 5. Ndb5 {[%clk
0:09:59.7]} 5... d5 {[%clk 0:09:54.8]} 6. Bf4 {[%clk 0:09:40.5]} 6... e5 {[%clk
0:09:50.5]} 7. Nxd5 {[%clk 0:09:34.5]} 7... exf4 {[%clk 0:09:46]} 8. Nbc7+
{[%clk 0:09:12.9]} 8... Kd7 {[%clk 0:09:45.3]} 9. e4 {[%clk 0:07:52.3]} 9...
Qxc7 {[%clk 0:08:59.7]} 10. Nxc7+ {[%clk 0:07:51.6]} 10... Kxc7 {[%clk
0:09:01.6]} 11. Qf3 {[%clk 0:07:00.4]} 11... Bb4+ {[%clk 0:08:35.4]} 12. c3
{[%clk 0:07:01]} 12... Bd6 {[%clk 0:08:36.6]} 13. O-O-O {[%clk 0:07:02]} 13...
Ne5 {[%clk 0:08:36.3]} 14. Qe2 {[%clk 0:06:53.7]} 14... Nf6 {[%clk 0:08:29.7]}
15. Rxd6 {[%clk 0:06:47.7]} 15... Kxd6 {[%clk 0:08:28.9]} 16. Qd2+ {[%clk
0:06:48.8]} 16... Ke7 {[%clk 0:07:44.4]} 17. Qxf4 {[%clk 0:06:49]} 17... Nfd7
{[%clk 0:07:45.8]} 18. Bb5 {[%clk 0:06:31.1]} 18... f6 {[%clk 0:07:43.2]} 19.
Rd1 {[%clk 0:06:24.4]} 19... a6 {[%clk 0:07:40.5]} 20. Ba4 {[%clk 0:06:11.9]}
20... Nc5 {[%clk 0:07:40]} 21. Bc2 {[%clk 0:06:12.9]} 21... Be6 {[%clk
0:07:36.7]} 22. Qe3 {[%clk 0:06:12.1]} 22... Rac8 {[%clk 0:07:33.2]} 23. f4
{[%clk 0:06:13.1]} 23... Ng4 {[%clk 0:07:08.2]} 24. Qg3 {[%clk 0:06:11.6]} 24...
h5 {[%clk 0:07:07.7]} 25. f5 {[%clk 0:06:12.1]} 25... Bxa2 {[%clk 0:06:55.7]}
26. b4 {[%clk 0:05:02]} 26... Nxe4 {[%clk 0:04:51.5]} 27. Bxe4 {[%clk
0:04:33.5]} 27... Ne5 {[%clk 0:04:49.3]} 28. Bd5 {[%clk 0:03:25.2]} 28... Bxd5
{[%clk 0:04:44.7]} 29. Rxd5 {[%clk 0:03:26.6]} 29... Kf7 {[%clk 0:04:46.1]} 30.
Rxe5 {[%clk 0:03:14.9]} 30... fxe5 {[%clk 0:04:48]} 31. Qg6+ {[%clk 0:03:16]}
31... Kg8 {[%clk 0:04:36.5]} 32. f6 {[%clk 0:03:01.4]} 32... Rxc3+ {[%clk
0:04:35.2]} 33. Kb2 {[%clk 0:03:01.9]} 33... Rc7 {[%clk 0:04:37.1]} 34. Qe8+
{[%clk 0:03:02.3]} 34... Kh7 {[%clk 0:04:37]} 35. Qxh5+ {[%clk 0:03:03]} 35...
Kg8 {[%clk 0:04:36.7]} 36. Qe8+ {[%clk 0:02:57.1]} 36... Kh7 {[%clk 0:04:37.5]}
37. f7 {[%clk 0:02:50.6]} 37... Rc8 {[%clk 0:04:38.5]} 38. Qxe5 {[%clk
0:02:50.3]} 38... g6 {[%clk 0:04:29.4]} 39. h4 {[%clk 0:02:28.5]} 39... Rhf8
{[%clk 0:04:09.8]} 40. h5 {[%clk 0:02:29.5]} 40... gxh5 {[%clk 0:04:07]} 41.
Qxh5+ {[%clk 0:02:29.9]} 41... Kg7 {[%clk 0:04:08.3]} 42. g4 {[%clk 0:02:23.1]}
42... Rc6 {[%clk 0:04:05.3]} 43. Qg5+ {[%clk 0:02:16.1]} 43... Kxf7 {[%clk
0:03:59.4]} 44. Qd5+ {[%clk 0:02:16.7]} 44... Kg7 {[%clk 0:03:28.8]} 45. g5
{[%clk 0:02:13.8]} 45... Rf7 {[%clk 0:03:15.3]} 46. Kb3 {[%clk 0:02:10.1]} 46...
Kg6 {[%clk 0:03:03.7]} 47. Ka4 {[%clk 0:02:10.9]} 47... Rf5 {[%clk 0:02:39.2]}
48. Qg8+ {[%clk 0:01:52.4]} 48... Kh5 {[%clk 0:02:40.2]} 49. Qh7+ {[%clk
0:01:40.5]} 49... Kxg5 {[%clk 0:02:40]} 50. Qg7+ {[%clk 0:01:36.5]} 50... Rg6
{[%clk 0:02:33.7]} 51. Qxb7 {[%clk 0:01:37.1]} 51... Rb5 {[%clk 0:02:29.7]} 52.
Qe7+ {[%clk 0:01:36.1]} 52... Kf5 {[%clk 0:02:29.1]} 53. Qf7+ {[%clk 0:01:36.8]}
53... Rf6 {[%clk 0:02:30.3]} 54. Qd7+ {[%clk 0:01:37.6]} 54... Ke5 {[%clk
0:02:30.8]} 55. Qe7+ {[%clk 0:01:38.6]} 55... Re6 {[%clk 0:02:32]} 56. Qc7+
{[%clk 0:01:39.3]} 56... Kd5 {[%clk 0:02:32]} 57. Qd7+ {[%clk 0:01:40.5]} 57...
Rd6 {[%clk 0:02:32.4]} 58. Qf5+ {[%clk 0:01:39.7]} 58... Kc6 {[%clk 0:02:24.6]}
59. Qe4+ {[%clk 0:01:32.1]} 59... Kb6 {[%clk 0:02:21.5]} 60. Qe3+ {[%clk
0:01:33]} 60... Kc7 {[%clk 0:02:15.7]} 61. Qe7+ {[%clk 0:01:32.3]} 61... Rd7
{[%clk 0:02:16]} 62. Qf6 {[%clk 0:01:28.5]} 62... Kb7 {[%clk 0:02:14.4]} 63.
Qf3+ {[%clk 0:01:27.3]} 63... Ka7 {[%clk 0:02:12.8]} 64. Qe3+ {[%clk 0:01:28.1]}
64... Rb6 {[%clk 0:02:13.3]} 65. Qc5 {[%clk 0:01:20]} 65... Rb7 {[%clk
0:02:10.1]} 66. Ka5 {[%clk 0:01:14.5]} 66... Rb8 {[%clk 0:02:00.2]} 67. Qd4
{[%clk 0:01:14.5]} 67... Rb7 {[%clk 0:01:55.6]} 68. Qc5 {[%clk 0:01:15.2]} 68...
Rb8 {[%clk 0:01:56.9]} 69. Qd4 {[%clk 0:01:13.9]} 69... Rb7 {[%clk 0:01:58.1]}
70. Qe3 {[%clk 0:01:14.8]} 70... Rb8 {[%clk 0:01:51.4]} 71. Qf2 {[%clk
0:01:15.2]} 71... Rb7 {[%clk 0:01:52.7]} 1/2-1/2